bitfinex-derivatives/quotes_BTCF0:USTF0_20250830
["timestamp","ask_amount","ask_price","bid_price","bid_amount"]
[1756528196982,0.04086,108710.0,108700.0,1.15294458]
[1756528197390,0.004,108710.0,108700.0,1.15294458]
[1756528199287,0.004,108710.0,108700.0,1.99618458]
[1756528205193,0.004,108710.0,108700.0,1.64314999]
[1756528205493,0.004,108710.0,108700.0,1.99566458]
[1756528208590,0.04047,108710.0,108700.0,1.99566458]
[1756528210199,0.004,108710.0,108700.0,1.99566458]
[1756528212005,0.06548,108710.0,108700.0,1.99610458]
[1756528212502,0.06548,108710.0,108700.0,1.64306999]
[1756528212704,0.06548,108710.0,108700.0,1.99610458]
[1756528213106,0.06548,108710.0,108700.0,1.15294458]
[1756528217210,0.08884295,108710.0,108700.0,1.15294458]
[1756528220013,0.08884295,108710.0,108700.0,0.79990999]
[1756528220310,0.08884295,108710.0,108700.0,1.15294458]
[1756528221313,0.06548,108710.0,108700.0,1.15294458]
[1756528221515,0.31548,108710.0,108700.0,0.79990999]
[1756528221708,0.31548,108710.0,108700.0,1.15294458]
[1756528223113,0.31448,108710.0,108700.0,0.79990999]
[1756528223316,0.31348,108710.0,108700.0,1.15294458]
[1756528224211,0.27701,108710.0,108700.0,1.15294458]
[1756528224416,0.31348,108710.0,108700.0,1.15294458]
[1756528224915,0.31348,108710.0,108700.0,0.79990999]
[1756528225119,0.31348,108710.0,108700.0,1.15294458]
[1756528225918,0.31248,108710.0,108700.0,1.15294458]
[1756528226618,0.31348,108710.0,108700.0,1.15294458]
[1756528230421,0.31348,108710.0,108700.0,0.79990999]
[1756528230621,0.31348,108710.0,108700.0,1.15294458]
[1756528231826,0.27701,108710.0,108700.0,1.15294458]
[1756528232028,0.31584,108710.0,108700.0,1.15294458]
[1756528236927,0.27701,108710.0,108700.0,1.15294458]
[1756528237326,0.31584,108710.0,108700.0,1.15294458]
[1756528237828,0.27701,108710.0,108700.0,1.15294458]
[1756528238428,0.31584,108710.0,108700.0,1.15294458]
[1756528238831,0.31584,108710.0,108700.0,0.79214458]
[1756528239422,0.27701,108710.0,108700.0,0.79214458]
[1756528240027,0.31584,108710.0,108700.0,0.79214458]
[1756528240535,0.27701,108710.0,108700.0,0.79214458]
[1756528240832,0.27501,108710.0,108700.0,0.79214458]
[1756528241035,0.31484,108710.0,108700.0,0.43910999]
[1756528241337,0.66793524,108710.0,108700.0,0.43910999]
[1756528241525,0.66793524,108710.0,108700.0,1.14530047]
[1756528242336,0.31484,108710.0,108700.0,0.79220523]
[1756528242533,0.66693524,108710.0,108700.0,0.79220523]
[1756528242741,0.41893524,108710.0,108700.0,0.42059]
[1756528242940,0.41893524,108710.0,108700.0,0.38467]
[1756528243132,1.38283048,108710.0,108700.0,0.02387]
[1756528243432,0.06267,108700.0,108690.0,0.42106]
[1756528243631,0.41587662,108700.0,108690.0,0.42106]
[1756528243832,1.26559662,108700.0,108690.0,0.42106]
[1756528244838,1.26659662,108700.0,108690.0,0.42106]
[1756528245039,1.28998641,108700.0,108690.0,0.42106]
[1756528245238,1.26659662,108700.0,108690.0,0.42106]
[1756528245938,1.26759662,108700.0,108690.0,0.42106]
[1756528246338,1.26759662,108700.0,108690.0,0.06026]
[1756528246742,1.65177597,108700.0,108690.0,0.06026]
[1756528247133,1.62839662,108700.0,108690.0,0.06026]
[1756528247638,1.9522512,108700.0,108690.0,0.02359]
[1756528247842,0.06267,108690.0,108680.0,0.06026]
[1756528248034,0.41587662,108690.0,108680.0,0.06026]
[1756528249038,0.41687662,108690.0,108680.0,0.06026]
[1756528251139,0.41687662,108690.0,108680.0,0.02359]
[1756528252439,1.26635662,108690.0,108680.0,0.02359]
[1756528253046,0.41687662,108690.0,108680.0,0.02359]
[1756528253242,1.26823662,108690.0,108680.0,0.02359]
[1756528253746,1.26823662,108690.0,108680.0,0.06026]
[1756528254743,0.41687662,108690.0,108680.0,0.06026]
[1756528254946,1.26927662,108690.0,108680.0,0.06026]
[1756528257550,1.26927662,108690.0,108680.0,0.02359]
[1756528258044,1.26927662,108690.0,108670.0,0.02359]
[1756528258045,0.06267,108680.0,108670.0,0.02359]
[1756528258347,0.41587662,108680.0,108670.0,0.02359]
[1756528258547,0.77667662,108680.0,108670.0,0.02359]
[1756528258940,0.77667662,108680.0,108670.0,0.06026]
[1756528259543,0.77667662,108680.0,108670.0,0.06126]
[1756528259746,0.77667662,108680.0,108670.0,0.06226]
[1756528260442,0.42347,108680.0,108670.0,0.06226]
[1756528260643,0.77667662,108680.0,108670.0,0.06226]
[1756528261042,0.77667662,108680.0,108670.0,0.002]
[1756528261248,1.02667662,108680.0,108670.0,0.002]
[1756528262157,1.15001059,108680.0,108660.0,0.03542]
[1756528262351,1.26665662,108670.0,108660.0,0.05954]
[1756528262646,1.08921109,108670.0,108660.0,0.05954]
[1756528262952,1.45001109,108670.0,108660.0,0.05954]
[1756528264646,1.45001109,108670.0,108660.0,0.06154]
[1756528265654,1.45001109,108670.0,108660.0,0.06254]
[1756528266955,1.09680447,108670.0,108660.0,0.06254]
[1756528267143,1.45001109,108670.0,108660.0,0.06254]
[1756528267454,0.77625662,108670.0,108660.0,0.06254]
[1756528267655,1.62673662,108670.0,108660.0,0.06254]
[1756528268357,1.62673662,108670.0,108660.0,0.02712]
[1756528268754,1.62673662,108670.0,108660.0,0.06254]
[1756528268950,1.62669662,108670.0,108660.0,0.06254]
[1756528271456,0.77625662,108670.0,108660.0,0.06254]
[1756528271658,1.62621662,108670.0,108660.0,0.06254]
[1756528272862,0.42305,108670.0,108660.0,0.06254]
[1756528273061,0.3608,108680.0,108660.0,0.06254]
[1756528273062,0.03804,108680.0,108660.0,1.37975324]
[1756528273261,0.06225,108680.0,108670.0,0.77354662]
[1756528274155,0.06225,108680.0,108670.0,0.05954]
[1756528275057,0.91465,108680.0,108670.0,0.42134]
[1756528275459,0.06225,108680.0,108670.0,1.02454662]
[1756528277165,0.06225,108680.0,108670.0,0.67134]
[1756528277364,0.06225,108680.0,108670.0,1.02454662]
[1756528277560,0.06225,108680.0,108670.0,0.67134]
[1756528278563,0.77625662,108680.0,108670.0,0.31054]
[1756528280363,0.77625662,108680.0,108670.0,0.06054]
[1756528280559,0.77625662,108680.0,108670.0,0.02512]
[1756528282565,0.77625662,108680.0,108670.0,0.001]
[1756528282965,1.04968496,108680.0,108670.0,0.001]
[1756528283160,1.0496851,108680.0,108670.0,0.001]
[1756528283867,1.5405651,108680.0,108670.0,0.06054]
[1756528284065,1.9013651,108680.0,108670.0,0.06054]
[1756528284962,1.87793662,108680.0,108670.0,0.06054]
[1756528285666,1.02625662,108680.0,108670.0,0.06054]
[1756528285861,1.52457,108680.0,108670.0,0.06054]
[1756528286059,0.68888853,108680.0,108670.0,0.06054]
[1756528286266,1.29020853,108680.0,108670.0,0.06054]
[1756528288267,0.43888853,108680.0,108670.0,0.06054]
[1756528288463,1.29020853,108680.0,108670.0,0.06054]
[1756528289873,1.29020853,108680.0,108670.0,0.02512]
[1756528290173,0.43888853,108680.0,108670.0,0.02512]
[1756528290374,1.28980853,108680.0,108670.0,0.02512]
[1756528291070,1.28980853,108680.0,108670.0,0.06323]
[1756528291465,0.93656191,108680.0,108670.0,0.42403]
[1756528291668,0.91313,108680.0,108670.0,1.02723662]
[1756528292178,0.87549,108680.0,108670.0,1.02723662]
[1756528292778,0.03823,108690.0,108670.0,0.98912662]
[1756528293070,0.02584,108690.0,108680.0,0.79666961]
[1756528293875,0.06407,108690.0,108680.0,0.79666961]
[1756528294575,0.41727662,108690.0,108680.0,0.08266299]
[1756528294976,0.06407,108690.0,108680.0,0.79666961]
[1756528295375,0.06507,108690.0,108680.0,0.79666961]
[1756528296973,0.41827662,108690.0,108680.0,0.3608]
[1756528297179,0.06407,108680.0,108670.0,0.02557]
[1756528297480,1.26827662,108680.0,108670.0,0.06368]
[1756528298280,1.26827662,108680.0,108670.0,0.06468]
[1756528298982,1.62907662,108680.0,108670.0,0.001]
[1756528299779,1.27587,108680.0,108670.0,0.02657]
[1756528299980,1.62907662,108680.0,108670.0,0.02657]
[1756528300284,1.26827662,108680.0,108670.0,0.02657]
[1756528300483,1.26827662,108680.0,108670.0,0.06468]
[1756528303481,1.26827662,108680.0,108670.0,0.02657]
[1756528304888,0.91507,108680.0,108670.0,0.02657]
[1756528305090,1.26827662,108680.0,108670.0,0.06468]
[1756528305282,1.26827662,108680.0,108670.0,0.02657]
[1756528306786,1.26827662,108680.0,108670.0,0.06468]
[1756528306990,1.26707662,108680.0,108670.0,0.06468]
[1756528307479,1.26707662,108680.0,108670.0,0.02657]
[1756528310294,1.26651662,108680.0,108670.0,0.02657]
[1756528311190,1.26651662,108680.0,108670.0,0.001]
[1756528311591,1.87731662,108680.0,108670.0,0.001]
[1756528311797,0.03823,108670.0,108650.0,0.03811]
[1756528312094,1.22820662,108660.0,108640.0,0.77060538]
[1756528312296,0.06407,108650.0,108640.0,0.79617538]
[1756528313494,0.06107,108650.0,108640.0,0.79617538]
[1756528313992,0.06107,108650.0,108640.0,0.44296876]
[1756528314193,0.06207,108650.0,108640.0,0.44296876]
[1756528315592,0.10101885,108650.0,108640.0,0.44296876]
[1756528315985,0.10101885,108650.0,108640.0,0.79617538]
[1756528316589,0.02684,108650.0,108640.0,0.79617538]
[1756528316795,0.001,108650.0,108640.0,1.13820788]
[1756528317593,0.001,108650.0,108640.0,1.04617538]
[1756528317794,0.10404593,108650.0,108640.0,0.69296876]
[1756528317994,0.06507,108650.0,108640.0,1.64509538]
[1756528318297,0.06507,108650.0,108640.0,0.44296876]
[1756528319095,0.41827662,108650.0,108640.0,0.44296876]
[1756528319498,0.41827662,108650.0,108640.0,0.40485876]
[1756528319698,0.41827662,108650.0,108640.0,0.44296876]
[1756528320901,0.10449464,108650.0,108640.0,0.44296876]
[1756528321295,0.45770126,108650.0,108640.0,0.44296876]
[1756528323302,0.45770126,108650.0,108640.0,0.42448]
[1756528324905,0.35320662,108650.0,108640.0,0.42448]
[1756528325200,0.39199056,108650.0,108640.0,0.42448]
[1756528329201,1.00279056,108650.0,108630.0,0.0633]
[1756528329403,1.00279056,108650.0,108630.0,0.02488]
[1756528329404,1.56188662,108640.0,108630.0,0.02488]
[1756528330311,0.96400662,108640.0,108630.0,0.001]
[1756528330509,1.81176662,108640.0,108630.0,0.02588]
[1756528330709,0.96400662,108640.0,108630.0,0.02588]
[1756528331211,1.81168662,108640.0,108630.0,0.02588]
[1756528331410,0.96400662,108640.0,108630.0,0.02588]
[1756528331605,1.81160662,108640.0,108630.0,0.02588]
[1756528331810,0.96400662,108640.0,108630.0,0.02588]
[1756528332000,1.81152662,108640.0,108630.0,0.0643]
[1756528332203,1.81152662,108640.0,108630.0,0.02588]
[1756528332710,1.81152662,108640.0,108630.0,0.001]
[1756528332906,1.81152662,108640.0,108620.0,0.05672544]
[1756528333109,0.35320662,108630.0,108620.0,0.08160544]
[1756528333911,0.42791136,108630.0,108620.0,0.08160544]
[1756528334711,1.27519136,108630.0,108620.0,0.08160544]
[1756528334910,1.27819136,108630.0,108620.0,0.08160544]
[1756528335412,1.63899136,108630.0,108620.0,0.08160544]
[1756528336411,1.63999136,108630.0,108620.0,0.08160544]
[1756528337010,1.63975136,108630.0,108620.0,0.08160544]
[1756528337609,1.63975136,108630.0,108620.0,0.04318544]
[1756528337914,1.99295798,108630.0,108620.0,0.04318544]
[1756528338114,1.99295798,108630.0,108620.0,0.0633]
[1756528338819,1.99295798,108630.0,108610.0,0.0633]
[1756528338820,2.24295798,108630.0,108610.0,0.0633]
[1756528339116,0.35320662,108620.0,108610.0,0.0633]
[1756528340618,1.19984662,108620.0,108610.0,0.0633]
[1756528341614,1.20184662,108620.0,108610.0,0.0633]
[1756528343218,0.35520662,108620.0,108610.0,0.0633]
[1756528343420,1.20168662,108620.0,108610.0,0.0633]
[1756528345518,1.20168662,108620.0,108600.0,0.39922]
[1756528345719,0.35320662,108610.0,108600.0,0.4241]
[1756528347315,0.35320662,108610.0,108600.0,0.4251]
[1756528348022,0.84648,108620.0,108600.0,0.4251]
[1756528348223,0.35320662,108610.0,108600.0,0.4251]
[1756528349024,0.35320662,108610.0,108600.0,0.4241]
[1756528349220,0.35320662,108610.0,108600.0,0.4251]
[1756528351917,0.35320662,108610.0,108600.0,0.02588]
[1756528351918,1.06721324,108610.0,108600.0,0.02588]
[1756528352125,1.0910757,108610.0,108600.0,0.02588]
[1756528352521,0.73786908,108610.0,108600.0,0.02588]
[1756528358327,1.4410757,108610.0,108580.0,0.01629239]
[1756528358532,0.35320662,108590.0,108580.0,0.05260239]
[1756528358729,0.06114,108580.0,108570.0,0.34699239]
[1756528358930,0.41434662,108580.0,108570.0,0.34699239]
[1756528359132,0.39033662,108600.0,108570.0,1.14549863]
[1756528359328,0.08503705,108600.0,108590.0,0.02353]
[1756528359834,0.08503705,108600.0,108590.0,0.62673662]
[1756528360634,0.08503705,108600.0,108590.0,0.66304662]
[1756528361332,0.08503705,108600.0,108590.0,0.30984]
[1756528361536,0.44024367,108600.0,108590.0,0.30984]
[1756528362941,1.64608367,108600.0,108590.0,0.02353]
[1756528368135,1.64608367,108600.0,108590.0,0.05984]
[1756528369234,0.08703705,108600.0,108590.0,0.41304662]
[1756528369744,0.44024367,108600.0,108590.0,0.05984]
[1756528370241,0.44024367,108600.0,108590.0,0.42064]
[1756528371742,0.08703705,108600.0,108590.0,0.42064]
[1756528371942,0.44024367,108600.0,108590.0,0.42064]
[1756528372140,0.08703705,108600.0,108590.0,0.42064]
[1756528372333,0.44024367,108600.0,108590.0,0.42064]
[1756528372539,0.06314,108600.0,108590.0,0.67064]
[1756528372742,0.06314,108600.0,108590.0,1.02384662]
[1756528373143,0.06314,108600.0,108590.0,0.67064]
[1756528373144,0.41634662,108600.0,108590.0,0.67064]
[1756528373346,0.41634662,108600.0,108580.0,0.73237846]
[1756528373347,1.13035324,108600.0,108580.0,0.05468184]
[1756528373544,1.62106662,108590.0,108580.0,0.02353]
[1756528373843,0.06114,108580.0,108570.0,0.02353]
[1756528374144,0.79905053,108580.0,108570.0,0.02353]
[1756528374537,0.8326454,108580.0,108570.0,0.05984]
[1756528374738,0.8326454,108580.0,108560.0,0.05495576]
[1756528375048,0.41434662,108570.0,108560.0,0.07848576]
[1756528375242,0.06114,108570.0,108560.0,0.79249238]
[1756528375447,0.02401,108570.0,108560.0,0.79249238]
[1756528376454,0.02401,108570.0,108560.0,0.79749238]
[1756528376655,0.06114,108570.0,108560.0,0.08348576]
[1756528376847,0.41434662,108570.0,108560.0,0.08348576]
[1756528377049,0.41434662,108570.0,108560.0,0.08248576]
[1756528378151,0.41434662,108570.0,108560.0,0.07948576]
[1756528378356,0.06114,108570.0,108560.0,0.43469238]
[1756528379151,0.06114,108570.0,108560.0,0.79549238]
[1756528379357,0.13318953,108570.0,108560.0,0.79549238]
[1756528387461,0.09605953,108570.0,108560.0,0.79549238]
[1756528389169,0.13411953,108570.0,108560.0,0.79549238]
[1756528390363,0.13411953,108570.0,108560.0,0.44228576]
[1756528390570,0.13411953,108570.0,108560.0,0.79549238]
[1756528390769,0.13411953,108570.0,108560.0,1.64169238]
[1756528390966,0.09605953,108570.0,108560.0,1.64169238]
[1756528391268,0.13411953,108570.0,108560.0,1.64169238]
[1756528391768,0.13411953,108570.0,108560.0,0.08148576]
[1756528392068,0.13411953,108570.0,108560.0,0.41604662]
[1756528393263,0.09605953,108570.0,108560.0,0.41604662]
[1756528393867,0.09605953,108570.0,108560.0,0.77684662]
[1756528395570,0.09605953,108570.0,108560.0,0.41604662]
[1756528396170,0.09605953,108570.0,108560.0,0.77684662]
[1756528397263,0.13411953,108570.0,108560.0,0.77684662]
[1756528398572,0.09605953,108570.0,108560.0,0.77684662]
[1756528400062,0.07204953,108570.0,108560.0,0.86895502]
[1756528400267,0.02367,108570.0,108560.0,0.77684662]
[1756528400766,0.78566149,108580.0,108560.0,0.74053662]
[1756528400965,0.8331441,108580.0,108570.0,0.06427]
[1756528401969,0.4723441,108580.0,108570.0,0.42507]
[1756528402373,0.05740748,108580.0,108570.0,0.77827662]
[1756528402676,0.05740748,108580.0,108570.0,2.32082314]
[1756528402677,0.03359487,108580.0,108570.0,2.32082314]
[1756528402973,0.3608,108590.0,108580.0,0.06427]
[1756528402974,0.38447,108590.0,108580.0,0.06427]
[1756528403168,0.38447,108590.0,108580.0,0.41747662]
[1756528404068,0.45559999,108590.0,108580.0,0.41747662]
[1756528404474,0.45659999,108590.0,108580.0,0.41747662]
[1756528404673,0.48043463,108590.0,108580.0,0.41747662]
[1756528404975,0.09579999,108590.0,108580.0,0.41747662]
[1756528407572,0.05773999,108590.0,108580.0,0.77827662]
[1756528407768,0.03406999,108590.0,108580.0,0.87036812]
[1756528408268,0.03406999,108590.0,108580.0,0.77827662]
[1756528408468,0.05773999,108590.0,108580.0,0.77827662]
[1756528409875,0.03406999,108590.0,108580.0,0.77827662]
[1756528410079,0.09579999,108590.0,108580.0,0.06427]
[1756528410375,1.05980661,108590.0,108580.0,0.02567]
[1756528410672,1.90512661,108590.0,108570.0,0.0386]
[1756528410871,0.41313662,108580.0,108570.0,0.06427]
[1756528411175,0.77393662,108580.0,108570.0,0.06427]
[1756528411868,0.77393662,108580.0,108570.0,0.06527]
[1756528412069,0.79774852,108580.0,108570.0,0.06527]
[1756528412274,0.4445419,108580.0,108570.0,0.06527]
[1756528413079,0.4445419,108580.0,108570.0,0.06627]
[1756528413574,0.79774852,108580.0,108570.0,0.06627]
[1756528415186,0.79774852,108580.0,108570.0,0.02767]
[1756528415377,0.60659388,108580.0,108570.0,0.02767]
[1756528415677,0.60659388,108580.0,108570.0,0.06427]
[1756528417984,0.37701852,108580.0,108570.0,0.06427]
[1756528418384,1.23906999,108590.0,108570.0,0.02767]
[1756528418584,1.26288342,108590.0,108580.0,0.06031]
[1756528418783,1.61609004,108590.0,108580.0,0.02371]
[1756528419885,1.61609004,108590.0,108570.0,0.06131]
[1756528420084,0.71400662,108580.0,108570.0,0.06231]
[1756528420287,0.73782005,108580.0,108570.0,0.06131]
[1756528420586,0.73782005,108580.0,108570.0,0.08026091]
[1756528420888,0.37702005,108580.0,108570.0,0.07926091]
[1756528421094,0.73782005,108580.0,108570.0,0.07926091]
[1756528421594,0.71400662,108580.0,108570.0,0.07926091]
[1756528421780,0.35320662,108580.0,108570.0,0.07926091]
[1756528422376,0.37702013,108580.0,108570.0,0.08026091]
[1756528422983,0.37702011,108580.0,108570.0,0.08126091]
[1756528423286,0.71400662,108580.0,108570.0,0.08126091]
[1756528423482,0.73782112,108580.0,108570.0,0.08126091]
[1756528424380,0.73782112,108580.0,108570.0,0.002]
[1756528424588,0.98782207,108580.0,108570.0,0.002]
[1756528425683,0.98782207,108580.0,108570.0,0.02571]
[1756528425888,1.83246207,108580.0,108570.0,0.02571]
[1756528426887,1.83246207,108580.0,108570.0,0.06231]
[1756528429695,1.83246207,108580.0,108570.0,0.02571]
[1756528430295,1.83246207,108580.0,108570.0,0.002]
[1756528434096,1.83246207,108580.0,108570.0,0.02571]
[1756528434497,1.83246207,108580.0,108570.0,0.002]
[1756528435998,1.83246207,108580.0,108570.0,0.02571]
[1756528437804,1.80864662,108580.0,108570.0,0.02571]
[1756528438004,1.83249818,108580.0,108570.0,0.002]
[1756528439307,1.58249818,108580.0,108570.0,0.002]
[1756528439505,1.58249818,108580.0,108570.0,0.02571]
[1756528441503,1.58249818,108580.0,108570.0,0.002]
[1756528441706,1.58249818,108580.0,108570.0,0.02703]
[1756528443610,0.73785818,108580.0,108570.0,0.66740662]
[1756528443914,0.02385156,108580.0,108570.0,0.66740662]
[1756528444410,0.02385156,108580.0,108570.0,0.3142]
[1756528445813,0.37705818,108580.0,108570.0,0.3142]
[1756528446610,0.37705818,108580.0,108570.0,0.3325959]
[1756528447012,0.35320662,108580.0,108570.0,0.3325959]
[1756528447316,0.37708241,108580.0,108570.0,0.3325959]
[1756528448613,0.37708241,108580.0,108570.0,0.68580252]
[1756528448811,0.37708241,108580.0,108570.0,0.3325959]
[1756528449412,0.37708241,108580.0,108570.0,0.3142]
[1756528452519,0.35320662,108580.0,108570.0,0.3142]
[1756528452719,0.37708461,108580.0,108570.0,0.3142]
[1756528457524,0.73788461,108580.0,108570.0,0.02703]
[1756528458021,0.73788461,108580.0,108570.0,0.002]
[1756528458919,0.98788461,108580.0,108570.0,0.002]
[1756528459617,0.98788461,108580.0,108570.0,0.02703]
[1756528462626,0.98788461,108580.0,108570.0,0.04578362]
[1756528463418,0.98788461,108580.0,108570.0,0.02075362]
[1756528464526,0.98788461,108580.0,108570.0,0.002]
[1756528466628,0.79357338,108580.0,108570.0,0.002]
[1756528470329,0.79357338,108580.0,108570.0,0.001]
[1756528470530,0.79457338,108580.0,108560.0,0.0622]
[1756528470724,0.35320662,108570.0,108560.0,0.0622]
[1756528470936,1.03544676,108580.0,108560.0,0.38583]
[1756528471127,0.35320662,108570.0,108560.0,0.42287]
[1756528471632,0.35320662,108570.0,108560.0,0.42387]
[1756528471836,1.03544676,108580.0,108560.0,0.42387]
[1756528472130,0.35320662,108570.0,108560.0,0.42387]
[1756528473433,0.35320662,108570.0,108560.0,0.42487]
[1756528473930,0.35320662,108570.0,108560.0,0.42387]
[1756528474231,0.35320662,108570.0,108560.0,0.42487]
[1756528475336,0.35320662,108570.0,108560.0,0.06407]
[1756528476436,0.42804853,108570.0,108560.0,0.02703]
[1756528476637,0.78125515,108570.0,108560.0,0.02703]
[1756528477137,0.42804853,108570.0,108560.0,0.02703]
[1756528477438,0.42804853,108570.0,108560.0,0.06407]
[1756528478538,0.42804853,108570.0,108560.0,0.02703]
[1756528478740,0.451861,108570.0,108560.0,0.02703]
[1756528479335,0.42804853,108570.0,108560.0,0.02703]
[1756528480041,0.45186091,108570.0,108560.0,0.02703]
[1756528480442,1.16586781,108570.0,108560.0,0.002]
[1756528480640,0.81266119,108570.0,108560.0,0.002]
[1756528481041,0.81266119,108570.0,108560.0,0.02553]
[1756528481939,1.41586781,108570.0,108560.0,0.002]
[1756528482138,1.51586781,108570.0,108560.0,0.002]
[1756528482342,2.35990781,108570.0,108560.0,0.002]
[1756528483141,2.25990781,108570.0,108560.0,0.002]
[1756528483738,1.41586781,108570.0,108560.0,0.002]
[1756528484039,1.90674119,108570.0,108560.0,0.02553]
[1756528484243,1.90674119,108570.0,108560.0,0.06257]
[1756528487146,1.06266119,108570.0,108560.0,0.06257]
[1756528487347,1.90674119,108570.0,108560.0,0.06257]
[1756528489150,1.29594119,108570.0,108560.0,0.08093976]
[1756528489347,0.94273457,108570.0,108560.0,0.08093976]
[1756528489847,1.29594119,108570.0,108560.0,0.08093976]
[1756528492649,0.45186119,108570.0,108560.0,0.08093976]
[1756528492852,1.29594119,108570.0,108560.0,0.08093976]
[1756528497351,1.29683457,108570.0,108560.0,0.43503976]
[1756528498956,0.45275457,108570.0,108560.0,0.08093976]
[1756528499154,1.29683457,108570.0,108560.0,0.43503976]
[1756528499857,1.29683457,108570.0,108560.0,0.79583976]
[1756528500056,1.29683457,108570.0,108560.0,0.44173976]
[1756528500355,1.29683457,108570.0,108560.0,0.79583976]
[1756528501550,0.45275457,108570.0,108560.0,0.79583976]
[1756528501751,0.09865457,108570.0,108560.0,0.79583976]
[1756528501953,1.29683457,108570.0,108560.0,0.79583976]
[1756528504858,1.29683457,108570.0,108560.0,0.43503976]
[1756528505156,1.29683457,108570.0,108560.0,0.79583976]
[1756528508458,1.29675457,108570.0,108560.0,0.79583976]
[1756528509059,0.45275457,108570.0,108560.0,0.79583976]
[1756528509263,0.94265457,108570.0,108560.0,1.39993976]
[1756528510058,1.29675457,108570.0,108560.0,1.39993976]
[1756528511267,0.45275457,108570.0,108560.0,1.39993976]
[1756528513861,0.09865457,108570.0,108560.0,1.39993976]
[1756528514257,0.45275457,108570.0,108560.0,1.39993976]
[1756528514765,0.09865457,108570.0,108560.0,1.39993976]
[1756528514967,0.45275457,108570.0,108560.0,1.39993976]
[1756528516166,0.45275457,108570.0,108560.0,1.04583976]
[1756528516567,0.09865457,108570.0,108560.0,1.04583976]
[1756528516768,0.45275457,108570.0,108560.0,1.04583976]
[1756528517069,0.45275457,108570.0,108560.0,1.39993976]
[1756528518663,0.09865457,108570.0,108560.0,1.39993976]
[1756528518976,0.07484191,108570.0,108560.0,1.76073976]
[1756528519273,0.3541,108580.0,108560.0,1.72369976]
[1756528519568,0.37781262,108580.0,108570.0,0.77487]
[1756528521773,0.37881262,108580.0,108570.0,0.77487]
[1756528521959,0.02471262,108580.0,108570.0,0.77487]
[1756528522162,0.37881262,108580.0,108570.0,0.77487]
[1756528522572,0.02471262,108580.0,108570.0,0.77487]
[1756528522774,0.37881262,108580.0,108570.0,0.77487]
[1756528525173,0.02471262,108580.0,108570.0,0.77487]
[1756528525368,0.37881262,108580.0,108570.0,0.77487]
[1756528526373,0.02471262,108580.0,108570.0,0.77487]
[1756528526671,0.37881262,108580.0,108570.0,0.77487]
[1756528529581,0.37881262,108580.0,108570.0,0.42077]
[1756528529778,0.02471262,108580.0,108570.0,0.77487]
[1756528530473,0.37881262,108580.0,108570.0,0.77487]
[1756528533683,0.02471262,108580.0,108570.0,0.77487]
[1756528533883,0.37881262,108580.0,108570.0,0.77487]
[1756528535778,0.02471262,108580.0,108570.0,0.77487]
[1756528535985,0.37881262,108580.0,108570.0,0.77487]
[1756528536380,0.02471262,108580.0,108570.0,0.77487]
[1756528536579,0.37881262,108580.0,108570.0,0.77487]
[1756528537079,0.02471262,108580.0,108570.0,0.77487]
[1756528537284,0.37881262,108580.0,108570.0,0.77487]
[1756528538182,0.02471262,108580.0,108570.0,0.77487]
[1756528538486,0.37881262,108580.0,108570.0,0.77487]
[1756528540884,0.02471262,108580.0,108570.0,0.77487]
[1756528541086,0.37881262,108580.0,108570.0,0.77487]
[1756528542484,1.34371262,108580.0,108570.0,0.02375]
[1756528542691,1.14468741,108580.0,108560.0,0.05949]
[1756528542885,1.55172,108570.0,108560.0,0.23380259]
[1756528543190,1.61832,108570.0,108560.0,0.07379259]
[1756528543583,1.61832,108570.0,108560.0,0.78869259]
[1756528543584,0.90342,108570.0,108560.0,0.78869259]
[1756528543793,0.02312,108570.0,108560.0,1.14279259]
[1756528543981,0.0599,108570.0,108560.0,1.14279259]
[1756528544186,0.0599,108570.0,108560.0,1.14379259]
[1756528544390,0.414,108570.0,108560.0,0.43559259]
[1756528544591,0.414,108570.0,108560.0,0.78969259]
[1756528544791,0.414,108570.0,108560.0,0.79069259]
[1756528544986,0.414,108570.0,108560.0,0.82662259]
[1756528545194,0.414,108570.0,108560.0,0.11172259]
[1756528545384,0.414,108570.0,108560.0,0.46582259]
[1756528545783,0.415,108570.0,108560.0,0.46482259]
[1756528545982,0.665,108570.0,108560.0,0.07479259]
[1756528546593,0.73727056,108570.0,108560.0,0.07479259]
[1756528546794,0.83727056,108570.0,108560.0,0.001]
[1756528546995,0.73727056,108570.0,108560.0,0.02456]
[1756528547196,0.73727056,108570.0,108560.0,0.02356]
[1756528547591,0.73727056,108570.0,108560.0,0.05949]
[1756528547990,0.73727056,108570.0,108560.0,0.41359]
[1756528548990,0.73727056,108570.0,108560.0,0.05949]
[1756528550584,1.58079056,108570.0,108560.0,0.05949]
[1756528551087,1.58079056,108570.0,108560.0,0.02356]
[1756528552192,1.65481056,108570.0,108560.0,0.05023259]
[1756528552394,2.00891056,108570.0,108560.0,0.05023259]
[1756528552693,2.04569056,108570.0,108560.0,0.05023259]
[1756528553084,1.69159056,108570.0,108560.0,0.05023259]
[1756528553295,1.79159056,108570.0,108560.0,0.05023259]
[1756528554290,1.43749056,108570.0,108560.0,0.07379259]
[1756528554495,1.79159056,108570.0,108560.0,0.07379259]
[1756528554696,1.81516527,108570.0,108560.0,0.05023259]
[1756528555096,1.81516527,108570.0,108560.0,0.07379259]
[1756528555295,1.36106527,108570.0,108560.0,0.10972259]
[1756528555501,1.71516527,108570.0,108560.0,0.10972259]
[1756528555695,0.87164527,108570.0,108560.0,0.46382259]
[1756528556301,0.51084527,108570.0,108560.0,0.46382259]
[1756528556793,0.51084527,108570.0,108560.0,0.10972259]
[1756528556999,0.51084527,108570.0,108560.0,0.46382259]
[1756528559187,0.51084527,108570.0,108560.0,0.41359]
[1756528559392,0.51083468,108570.0,108560.0,0.05949]
[1756528560200,0.87163468,108570.0,108560.0,0.05949]
[1756528560596,0.51083468,108570.0,108560.0,0.05949]
[1756528560798,1.35431468,108570.0,108560.0,0.05949]
[1756528561400,1.71511468,108570.0,108560.0,0.05949]
[1756528562198,1.35431468,108570.0,108560.0,0.05949]
[1756528562504,1.71511468,108570.0,108560.0,0.05949]
[1756528562699,1.71511468,108570.0,108560.0,0.02356]
[1756528563000,1.71511468,108570.0,108560.0,0.0576]
[1756528563804,1.71511468,108570.0,108560.0,0.0759197]
[1756528565304,1.71511468,108570.0,108560.0,0.0418797]
[1756528565505,1.71511468,108570.0,108560.0,0.0759197]
[1756528566010,1.71511468,108570.0,108560.0,0.0576]